[Event "Titled Tuesday Blitz August 09 Early 2022"]
[White "Estrada Nieto, Julian"]
[Black "Kiseljova, Marya"]
[WhiteFideId "5101018"]
[BlackFideId "4155009"]
[WhiteElo "2252"]
[BlackElo "1697"]
[Result "1-0"]
[Round "11"]
[TimeControl "180+1"]
[Date "2022.08.09"]
[WhiteClock "0:01:14"]
[BlackClock "0:00:01"]

1. e4 {[%clk 0:03:00]}  c5 {[%clk 0:03:00]} 2. Nf3 {[%clk 0:03:01]}  Nc6 {[%clk 0:03:00]} 3. Bb5 {[%clk 0:03:00]}  g6 {[%clk 0:03:00]} 4. Bxc6 {[%clk 0:03:01]}  dxc6 {[%clk 0:03:01]} 5. d3 {[%clk 0:03:01]}  Bg7 {[%clk 0:03:01]} 6. h3 {[%clk 0:03:01]}  e5 {[%clk 0:02:59]} 7. Nc3 {[%clk 0:03:02]}  Qc7 {[%clk 0:02:56]} 8. Be3 {[%clk 0:03:02]}  b6 {[%clk 0:02:56]} 9. Qd2 {[%clk 0:03:02]}  h6 {[%clk 0:02:55]} 10. a4 {[%clk 0:03:00]}  a5 {[%clk 0:02:54]} 11. O-O {[%clk 0:02:59]}  Nf6 {[%clk 0:02:51]} 12. Nh2 {[%clk 0:02:58]}  Nh5 {[%clk 0:02:50]} 13. Ne2 {[%clk 0:02:51]}  g5 {[%clk 0:02:15]} 14. Ng3 {[%clk 0:02:49]}  Nf4 {[%clk 0:02:12]} 15. Nf5 {[%clk 0:02:46]}  Bxf5 {[%clk 0:02:12]} 16. exf5 {[%clk 0:02:46]}  O-O-O {[%clk 0:01:56]} 17. g3 {[%clk 0:02:45]}  Nxh3+ {[%clk 0:01:52]} 18. Kg2 {[%clk 0:02:45]}  g4 {[%clk 0:01:41]} 19. Nxg4 {[%clk 0:02:43]}  Ng5 {[%clk 0:01:42]} 20. f6 {[%clk 0:02:39]}  Bf8 {[%clk 0:01:37]} 21. Bxg5 {[%clk 0:02:34]}  hxg5 {[%clk 0:01:37]} 22. Qxg5 {[%clk 0:02:31]}  Re8 {[%clk 0:01:13]} 23. Qf5+ {[%clk 0:02:27]}  Kb7 {[%clk 0:01:10]} 24. Rae1 {[%clk 0:02:23]}  Bd6 {[%clk 0:01:07]} 25. Rh1 {[%clk 0:02:20]}  Rhg8 {[%clk 0:00:46]} 26. Rh7 {[%clk 0:02:18]}  Rg6 {[%clk 0:00:38]} 27. Nh6 {[%clk 0:02:10]}  Rf8 {[%clk 0:00:26]} 28. Qxg6 {[%clk 0:02:00]}  fxg6 {[%clk 0:00:26]} 29. Rxc7+ {[%clk 0:02:00]}  Kxc7 {[%clk 0:00:26]} 30. f7 {[%clk 0:02:00]}  Kd7 {[%clk 0:00:21]} 31. Kf3 {[%clk 0:01:56]}  Ke7 {[%clk 0:00:19]} 32. Kg4 {[%clk 0:01:55]}  Kf6 {[%clk 0:00:18]} 33. f4 {[%clk 0:01:50]}  exf4 {[%clk 0:00:16]} 34. gxf4 {[%clk 0:01:50]}  Kg7 {[%clk 0:00:16]} 35. Re6 {[%clk 0:01:44]}  Kxh6 {[%clk 0:00:15]} 36. Rxd6 {[%clk 0:01:42]}  Rxf7 {[%clk 0:00:15]} 37. Rxc6 {[%clk 0:01:42]}  Rb7 {[%clk 0:00:16]} 38. f5 {[%clk 0:01:41]}  Kh7 {[%clk 0:00:14]} 39. fxg6+ {[%clk 0:01:41]}  Kg7 {[%clk 0:00:15]} 40. Kf5 {[%clk 0:01:40]}  b5 {[%clk 0:00:15]} 41. axb5 {[%clk 0:01:38]}  Rxb5 {[%clk 0:00:15]} 42. b3 {[%clk 0:01:38]}  c4+ {[%clk 0:00:15]} 43. Ke4 {[%clk 0:01:37]}  cxb3 {[%clk 0:00:15]} 44. cxb3 {[%clk 0:01:37]}  Rxb3 {[%clk 0:00:15]} 45. Ra6 {[%clk 0:01:37]}  Rb4+ {[%clk 0:00:15]} 46. d4 {[%clk 0:01:37]}  Ra4 {[%clk 0:00:15]} 47. Ke5 {[%clk 0:01:35]}  Ra1 {[%clk 0:00:15]} 48. Kf5 {[%clk 0:01:33]}  a4 {[%clk 0:00:14]} 49. Ra7+ {[%clk 0:01:32]}  Kg8 {[%clk 0:00:13]} 50. Kf6 {[%clk 0:01:30]}  Rf1+ {[%clk 0:00:13]} 51. Ke6 {[%clk 0:01:29]}  Rg1 {[%clk 0:00:13]} 52. Rxa4 {[%clk 0:01:24]}  Rxg6+ {[%clk 0:00:13]} 53. Kf5 {[%clk 0:01:24]}  Rg1 {[%clk 0:00:11]} 54. Ra7 {[%clk 0:01:24]}  Kf8 {[%clk 0:00:11]} 55. d5 {[%clk 0:01:22]}  Ke8 {[%clk 0:00:10]} 56. Ke5 {[%clk 0:01:21]}  Rh1 {[%clk 0:00:08]} 57. Kd6 {[%clk 0:01:20]}  Rh6+ {[%clk 0:00:08]} 58. Kc5 {[%clk 0:01:20]}  Rh5 {[%clk 0:00:08]} 59. Kc6 {[%clk 0:01:18]}  Rh1 {[%clk 0:00:05]} 60. Ra8+ {[%clk 0:01:16]}  Ke7 {[%clk 0:00:04]} 61. d6+ {[%clk 0:01:16]}  Ke6 {[%clk 0:00:02]} 62. Re8+ {[%clk 0:01:15]}  Kf7 {[%clk 0:00:02]} 63. d7 {[%clk 0:01:15]}  Rc1+ {[%clk 0:00:01]} 64. Kb5 {[%clk 0:01:14]} 1-0


[Site "https://www.chess.com"]

[Event "Titled Tuesday Blitz August 09 Early 2022"]
[White "Eynullayev, Atilla"]
[Black "Ramirez Vido, Robert Yorisan"]
[WhiteFideId "13413570"]
[BlackFideId "3513823"]
[WhiteElo "1936"]
[BlackElo "2434"]
[Result "1-0"]
[Round "11"]
[TimeControl "180+1"]
[Date "2022.08.09"]
[WhiteClock "0:02:25"]
[BlackClock "0:00:14"]

1. d4 {[%clk 0:03:00]}  g6 {[%clk 0:02:47]} 2. c4 {[%clk 0:03:01]}  Nf6 {[%clk 0:02:48]} 3. Nc3 {[%clk 0:03:00]}  Bg7 {[%clk 0:02:48]} 4. e4 {[%clk 0:03:01]}  d6 {[%clk 0:02:49]} 5. Be2 {[%clk 0:03:02]}  O-O {[%clk 0:02:49]} 6. Be3 {[%clk 0:03:02]}  Na6 {[%clk 0:02:48]} 7. Nf3 {[%clk 0:03:01]}  e5 {[%clk 0:02:49]} 8. O-O {[%clk 0:03:00]}  Ng4 {[%clk 0:02:48]} 9. Bg5 {[%clk 0:03:00]}  Qe8 {[%clk 0:02:48]} 10. Re1 {[%clk 0:02:59]}  exd4 {[%clk 0:02:46]} 11. Nxd4 {[%clk 0:02:59]}  Qe5 {[%clk 0:02:45]} 12. Nf3 {[%clk 0:02:56]}  Qc5 {[%clk 0:02:45]} 13. Rf1 {[%clk 0:02:52]}  h6 {[%clk 0:02:39]} 14. Bd2 {[%clk 0:02:50]}  Ne5 {[%clk 0:02:38]} 15. b3 {[%clk 0:02:48]}  Bg4 {[%clk 0:02:34]} 16. Be3 {[%clk 0:02:47]}  Qa5 {[%clk 0:02:31]} 17. Nd5 {[%clk 0:02:48]}  Bxf3 {[%clk 0:02:28]} 18. Bxf3 {[%clk 0:02:48]}  Nxf3+ {[%clk 0:02:28]} 19. Qxf3 {[%clk 0:02:48]}  c6 {[%clk 0:02:21]} 20. Nf6+ {[%clk 0:02:47]}  Kh8 {[%clk 0:02:05]} 21. Bd4 {[%clk 0:02:47]}  Nc5 {[%clk 0:01:54]} 22. Rad1 {[%clk 0:02:44]}  Ne6 {[%clk 0:01:54]} 23. Bc3 {[%clk 0:02:40]}  Qxa2 {[%clk 0:01:49]} 24. Nd7 {[%clk 0:02:40]}  Rfe8 {[%clk 0:00:55]} 25. Rxd6 {[%clk 0:02:28]}  Kg8 {[%clk 0:00:18]} 26. Nf6+ {[%clk 0:02:25]}  Kh8 {[%clk 0:00:14]} 27. Nxe8 {[%clk 0:02:25]}  Rxe8 {[%clk 0:00:14]} 28. Qxf7 {[%clk 0:02:25]} 1-0


[Site "https://www.chess.com"]

[Event "Titled Tuesday Blitz August 09 Early 2022"]
[White "Ezov"]
[Black "Vifleemskaia, Svetlana"]
[BlackFideId "4129490"]
[WhiteElo "2273"]
[BlackElo "1929"]
[Result "1/2-1/2"]
[Round "11"]
[TimeControl "180+1"]
[Date "2022.08.09"]
[WhiteClock "0:02:20"]
[BlackClock "0:02:42"]

1. d4 {[%clk 0:03:00]}  Nf6 {[%clk 0:02:56]} 2. c4 {[%clk 0:02:57]}  e6 {[%clk 0:02:56]} 3. Nc3 {[%clk 0:02:57]}  Bb4 {[%clk 0:02:56]} 4. Nf3 {[%clk 0:02:55]}  O-O {[%clk 0:02:55]} 5. e3 {[%clk 0:02:53]}  b6 {[%clk 0:02:55]} 6. Be2 {[%clk 0:02:52]}  Bb7 {[%clk 0:02:55]} 7. O-O {[%clk 0:02:52]}  Bxc3 {[%clk 0:02:54]} 8. bxc3 {[%clk 0:02:51]}  Ne4 {[%clk 0:02:55]} 9. Qc2 {[%clk 0:02:48]}  d6 {[%clk 0:02:54]} 10. Nd2 {[%clk 0:02:47]}  Nxd2 {[%clk 0:02:48]} 11. Bxd2 {[%clk 0:02:48]}  f5 {[%clk 0:02:48]} 12. f3 {[%clk 0:02:42]}  Nd7 {[%clk 0:02:48]} 13. e4 {[%clk 0:02:42]}  Qf6 {[%clk 0:02:43]} 14. Rae1 {[%clk 0:02:35]}  f4 {[%clk 0:02:42]} 15. Bd3 {[%clk 0:02:27]}  e5 {[%clk 0:02:42]} 16. Qb2 {[%clk 0:02:20]} 1/2-1/2


[Site "https://www.chess.com"]

[Event "Titled Tuesday Blitz August 09 Early 2022"]
[White "Fernandez Hernandez, Gerardo"]
[Black "White, John S."]
[WhiteFideId "2207400"]
[BlackFideId "2502348"]
[WhiteElo "2175"]
[BlackElo "1924"]
[Result "1-0"]
[Round "11"]
[TimeControl "180+1"]
[Date "2022.08.09"]
[WhiteClock "0:00:13"]
[BlackClock "0:00:04"]

1. e4 {[%clk 0:03:00]}  c5 {[%clk 0:02:58]} 2. d3 {[%clk 0:03:00]}  Nc6 {[%clk 0:02:57]} 3. g3 {[%clk 0:03:01]}  g6 {[%clk 0:02:54]} 4. Bg2 {[%clk 0:03:01]}  Bg7 {[%clk 0:02:54]} 5. f4 {[%clk 0:03:01]}  e6 {[%clk 0:02:53]} 6. Nf3 {[%clk 0:03:02]}  Nge7 {[%clk 0:02:52]} 7. O-O {[%clk 0:03:01]}  O-O {[%clk 0:02:51]} 8. c3 {[%clk 0:03:00]}  d5 {[%clk 0:02:49]} 9. Be3 {[%clk 0:03:00]}  d4 {[%clk 0:02:39]} 10. Bf2 {[%clk 0:02:56]}  Qb6 {[%clk 0:02:32]} 11. Qe2 {[%clk 0:02:38]}  Bd7 {[%clk 0:02:23]} 12. cxd4 {[%clk 0:01:58]}  cxd4 {[%clk 0:02:15]} 13. Na3 {[%clk 0:01:52]}  Rac8 {[%clk 0:01:58]} 14. Nc4 {[%clk 0:01:48]}  Qc7 {[%clk 0:01:55]} 15. e5 {[%clk 0:01:45]}  b5 {[%clk 0:01:52]} 16. Nd6 {[%clk 0:01:40]}  Rb8 {[%clk 0:01:41]} 17. Nxd4 {[%clk 0:01:35]}  Nxd4 {[%clk 0:01:37]} 18. Bxd4 {[%clk 0:01:35]}  Nc6 {[%clk 0:01:34]} 19. Bf2 {[%clk 0:01:24]}  Qa5 {[%clk 0:01:23]} 20. Rac1 {[%clk 0:01:17]}  Ne7 {[%clk 0:01:13]} 21. a3 {[%clk 0:01:01]}  Nf5 {[%clk 0:01:10]} 22. Nxf5 {[%clk 0:00:56]}  gxf5 {[%clk 0:01:09]} 23. Bc5 {[%clk 0:00:47]}  Rfc8 {[%clk 0:00:58]} 24. d4 {[%clk 0:00:46]}  Bc6 {[%clk 0:00:51]} 25. Bxc6 {[%clk 0:00:42]}  Rxc6 {[%clk 0:00:50]} 26. Rc2 {[%clk 0:00:40]}  Rbc8 {[%clk 0:00:43]} 27. Rfc1 {[%clk 0:00:40]}  Qc7 {[%clk 0:00:35]} 28. Qxb5 {[%clk 0:00:38]}  a6 {[%clk 0:00:31]} 29. Qe2 {[%clk 0:00:34]}  Bf8 {[%clk 0:00:30]} 30. b4 {[%clk 0:00:33]}  a5 {[%clk 0:00:28]} 31. b5 {[%clk 0:00:30]}  Bxc5 {[%clk 0:00:17]} 32. bxc6 {[%clk 0:00:28]}  Bxd4+ {[%clk 0:00:16]} 33. Kg2 {[%clk 0:00:26]}  Qb6 {[%clk 0:00:12]} 34. h3 {[%clk 0:00:16]}  Rc7 {[%clk 0:00:11]} 35. g4 {[%clk 0:00:15]}  fxg4 {[%clk 0:00:09]} 36. Qxg4+ {[%clk 0:00:15]}  Kh8 {[%clk 0:00:08]} 37. Kh2 {[%clk 0:00:15]}  Qb3 {[%clk 0:00:08]} 38. Rg2 {[%clk 0:00:14]}  f5 {[%clk 0:00:04]} 39. Qg8# {[%clk 0:00:13]} 1-0


[Site "https://www.chess.com"]

[Event "Titled Tuesday Blitz August 09 Early 2022"]
[White "Ferreira, Vitor Hugo Vieira"]
[Black "Rose, Felix"]
[WhiteFideId "2119765"]
[BlackFideId "5105722"]
[WhiteElo "2168"]
[BlackElo "2039"]
[Result "1-0"]
[Round "11"]
[TimeControl "180+1"]
[Date "2022.08.09"]
[WhiteClock "0:01:27"]
[BlackClock "0:00:17"]

1. e4 {[%clk 0:02:59]}  e5 {[%clk 0:02:59]} 2. Nf3 {[%clk 0:02:59]}  Nc6 {[%clk 0:03:00]} 3. Bb5 {[%clk 0:02:56]}  a6 {[%clk 0:02:59]} 4. Ba4 {[%clk 0:02:56]}  Nf6 {[%clk 0:02:59]} 5. O-O {[%clk 0:02:29]}  Be7 {[%clk 0:02:59]} 6. d3 {[%clk 0:02:29]}  b5 {[%clk 0:02:57]} 7. Bb3 {[%clk 0:02:29]}  d6 {[%clk 0:02:57]} 8. c3 {[%clk 0:02:29]}  Na5 {[%clk 0:02:57]} 9. Bc2 {[%clk 0:02:29]}  c5 {[%clk 0:02:57]} 10. Nbd2 {[%clk 0:02:29]}  Nc6 {[%clk 0:02:57]} 11. Re1 {[%clk 0:02:29]}  h6 {[%clk 0:02:56]} 12. a3 {[%clk 0:02:29]}  a5 {[%clk 0:02:56]} 13. h3 {[%clk 0:02:28]}  Be6 {[%clk 0:02:54]} 14. Nf1 {[%clk 0:02:28]}  b4 {[%clk 0:02:53]} 15. axb4 {[%clk 0:02:28]}  axb4 {[%clk 0:02:52]} 16. Rb1 {[%clk 0:02:11]}  O-O {[%clk 0:02:50]} 17. d4 {[%clk 0:02:11]}  Ba2 {[%clk 0:02:40]} 18. Ra1 {[%clk 0:02:08]}  b3 {[%clk 0:02:07]} 19. Bd3 {[%clk 0:02:08]}  cxd4 {[%clk 0:02:01]} 20. cxd4 {[%clk 0:02:07]}  Nxd4 {[%clk 0:02:00]} 21. Nxd4 {[%clk 0:02:06]}  exd4 {[%clk 0:02:01]} 22. Ng3 {[%clk 0:02:02]}  Re8 {[%clk 0:01:57]} 23. Nf5 {[%clk 0:02:01]}  Bf8 {[%clk 0:01:57]} 24. Nxd4 {[%clk 0:02:01]}  Qb6 {[%clk 0:01:52]} 25. Be3 {[%clk 0:02:00]}  Qb7 {[%clk 0:01:38]} 26. Qf3 {[%clk 0:01:49]}  Nxe4 {[%clk 0:01:28]} 27. Bxh6 {[%clk 0:01:46]}  gxh6 {[%clk 0:01:11]} 28. Rxe4 {[%clk 0:01:45]}  Qd7 {[%clk 0:00:20]} 29. Rg4+ {[%clk 0:01:29]}  Bg7 {[%clk 0:00:20]} 30. Nf5 {[%clk 0:01:29]}  Qxf5 {[%clk 0:00:17]} 31. Qxf5 {[%clk 0:01:27]} 1-0


[Site "https://www.chess.com"]

[Event "Titled Tuesday Blitz August 09 Early 2022"]
[White "Gombocz, Ferenc Jr."]
[Black "Sarkar, Justin"]
[WhiteFideId "775029"]
[BlackFideId "2010011"]
[WhiteElo "1913"]
[BlackElo "2076"]
[Result "1-0"]
[Round "11"]
[TimeControl "180+1"]
[Date "2022.08.09"]
[WhiteClock "0:01:39"]
[BlackClock "0:00:00"]

1. c4 {[%clk 0:03:00]}  d6 {[%clk 0:02:56]} 2. g3 {[%clk 0:03:01]}  g6 {[%clk 0:02:54]} 3. Bg2 {[%clk 0:03:02]}  Bg7 {[%clk 0:02:54]} 4. Nc3 {[%clk 0:03:02]}  c5 {[%clk 0:02:32]} 5. e4 {[%clk 0:03:02]}  Nc6 {[%clk 0:02:29]} 6. Nge2 {[%clk 0:03:03]}  h5 {[%clk 0:02:22]} 7. h4 {[%clk 0:03:01]}  Bg4 {[%clk 0:02:19]} 8. f3 {[%clk 0:03:00]}  Bd7 {[%clk 0:02:09]} 9. d3 {[%clk 0:03:00]}  a6 {[%clk 0:02:05]} 10. Be3 {[%clk 0:03:00]}  b5 {[%clk 0:01:58]} 11. cxb5 {[%clk 0:02:54]}  axb5 {[%clk 0:01:58]} 12. Nxb5 {[%clk 0:02:52]}  Bxb2 {[%clk 0:01:53]} 13. Rb1 {[%clk 0:02:48]}  Rxa2 {[%clk 0:01:15]} 14. Qb3 {[%clk 0:02:40]}  Be6 {[%clk 0:01:13]} 15. Qc2 {[%clk 0:02:27]}  Qa5+ {[%clk 0:00:47]} 16. Nec3 {[%clk 0:02:24]}  Bxc3+ {[%clk 0:00:32]} 17. Qxc3 {[%clk 0:02:23]}  Qxc3+ {[%clk 0:00:33]} 18. Nxc3 {[%clk 0:02:23]}  Rxg2 {[%clk 0:00:33]} 19. Bf2 {[%clk 0:02:24]}  Nf6 {[%clk 0:00:21]} 20. Kf1 {[%clk 0:02:22]}  Rxf2+ {[%clk 0:00:20]} 21. Kxf2 {[%clk 0:02:22]}  O-O {[%clk 0:00:19]} 22. Rb7 {[%clk 0:02:21]}  Nd7 {[%clk 0:00:17]} 23. Nd5 {[%clk 0:02:16]}  Nde5 {[%clk 0:00:06]} 24. Ke3 {[%clk 0:02:11]}  Bxd5 {[%clk 0:00:06]} 25. exd5 {[%clk 0:02:11]}  Nd4 {[%clk 0:00:05]} 26. f4 {[%clk 0:02:01]}  Ng4+ {[%clk 0:00:05]} 27. Kd2 {[%clk 0:02:01]}  Re8 {[%clk 0:00:04]} 28. Rhb1 {[%clk 0:01:58]}  Nf6 {[%clk 0:00:04]} 29. Rb8 {[%clk 0:01:57]}  Rxb8 {[%clk 0:00:01]} 30. Rxb8+ {[%clk 0:01:58]}  Kg7 {[%clk 0:00:02]} 31. Rb7 {[%clk 0:01:54]}  Nxd5 {[%clk 0:00:02]} 32. Ra7 {[%clk 0:01:52]}  Kf6 {[%clk 0:00:02]} 33. Ke1 {[%clk 0:01:48]}  Nf5 {[%clk 0:00:02]} 34. Kf2 {[%clk 0:01:48]}  Nb4 {[%clk 0:00:02]} 35. Ra3 {[%clk 0:01:46]}  Nc2 {[%clk 0:00:03]} 36. Rb3 {[%clk 0:01:44]}  Ncd4 {[%clk 0:00:03]} 37. Rb7 {[%clk 0:01:43]}  e6 {[%clk 0:00:03]} 38. Ra7 {[%clk 0:01:41]}  d5 {[%clk 0:00:00]} 39. Rxf7+ {[%clk 0:01:39]} 1-0


[Site "https://www.chess.com"]

[Event "Titled Tuesday Blitz August 09 Early 2022"]
[White "Grot, Blazej"]
[Black "Malyi, Viacheslav"]
[WhiteFideId "21835845"]
[BlackFideId "14123983"]
[WhiteElo "1614"]
[BlackElo "2190"]
[Result "0-1"]
[Round "11"]
[TimeControl "180+1"]
[Date "2022.08.09"]
[WhiteClock "0:00:14"]
[BlackClock "0:00:53"]

1. e4 {[%clk 0:03:00]}  e5 {[%clk 0:02:56]} 2. Nf3 {[%clk 0:02:59]}  Nc6 {[%clk 0:02:57]} 3. Bb5 {[%clk 0:02:59]}  a6 {[%clk 0:02:57]} 4. Ba4 {[%clk 0:03:00]}  Nf6 {[%clk 0:02:56]} 5. O-O {[%clk 0:02:59]}  b5 {[%clk 0:02:56]} 6. Bb3 {[%clk 0:02:58]}  Bc5 {[%clk 0:02:57]} 7. c3 {[%clk 0:02:58]}  d6 {[%clk 0:02:57]} 8. a4 {[%clk 0:02:54]}  Rb8 {[%clk 0:02:57]} 9. d4 {[%clk 0:02:53]}  Bb6 {[%clk 0:02:57]} 10. Re1 {[%clk 0:02:52]}  O-O {[%clk 0:02:56]} 11. Qd3 {[%clk 0:02:49]}  Bd7 {[%clk 0:02:54]} 12. Bc2 {[%clk 0:02:46]}  Re8 {[%clk 0:02:52]} 13. d5 {[%clk 0:02:46]}  Ne7 {[%clk 0:02:51]} 14. axb5 {[%clk 0:02:43]}  axb5 {[%clk 0:02:51]} 15. Na3 {[%clk 0:02:41]}  Ng6 {[%clk 0:02:50]} 16. h3 {[%clk 0:02:37]}  Nh5 {[%clk 0:02:49]} 17. Be3 {[%clk 0:02:27]}  Ngf4 {[%clk 0:02:48]} 18. Qf1 {[%clk 0:02:26]}  Qf6 {[%clk 0:02:45]} 19. Bd1 {[%clk 0:02:18]}  h6 {[%clk 0:02:38]} 20. g4 {[%clk 0:02:10]}  Qg6 {[%clk 0:02:31]} 21. Kh2 {[%clk 0:02:08]}  Nf6 {[%clk 0:02:27]} 22. Bxf4 {[%clk 0:02:02]}  exf4 {[%clk 0:02:25]} 23. Nh4 {[%clk 0:02:02]}  Qg5 {[%clk 0:02:20]} 24. Nf3 {[%clk 0:02:01]}  Qg6 {[%clk 0:02:15]} 25. Nh4 {[%clk 0:02:01]}  Qh7 {[%clk 0:02:15]} 26. f3 {[%clk 0:01:56]}  g5 {[%clk 0:01:44]} 27. Ng2 {[%clk 0:01:50]}  h5 {[%clk 0:01:41]} 28. Nxf4 {[%clk 0:01:24]}  gxf4 {[%clk 0:01:17]} 29. g5 {[%clk 0:01:15]}  Qg6 {[%clk 0:01:16]} 30. gxf6 {[%clk 0:01:10]}  Qg3+ {[%clk 0:01:17]} 31. Kh1 {[%clk 0:01:09]}  Bxh3 {[%clk 0:01:14]} 32. Qe2 {[%clk 0:01:05]}  Bf2 {[%clk 0:01:09]} 33. Qxf2 {[%clk 0:00:18]}  Qxf2 {[%clk 0:01:08]} 34. Rg1+ {[%clk 0:00:18]}  Kh8 {[%clk 0:01:06]} 35. Nc2 {[%clk 0:00:18]}  Ra8 {[%clk 0:00:57]} 36. Rxa8 {[%clk 0:00:16]}  Rxa8 {[%clk 0:00:56]} 37. Nd4 {[%clk 0:00:16]}  Rg8 {[%clk 0:00:53]} 38. Rxg8+ {[%clk 0:00:14]}  Kxg8 {[%clk 0:00:53]} 39. Be2 {[%clk 0:00:14]} 0-1


[Site "https://www.chess.com"]

[Event "Titled Tuesday Blitz August 09 Early 2022"]
[White "Gubanov, Oleg"]
[Black "Najdin, Danil"]
[WhiteFideId "14115115"]
[BlackFideId "4172426"]
[WhiteElo "2080"]
[BlackElo "2240"]
[Result "1-0"]
[Round "11"]
[TimeControl "180+1"]
[Date "2022.08.09"]
[WhiteClock "0:00:35"]
[BlackClock "0:00:45"]

1. e4 {[%clk 0:03:00]}  Nf6 {[%clk 0:02:55]} 2. e5 {[%clk 0:03:00]}  Nd5 {[%clk 0:02:54]} 3. d4 {[%clk 0:03:01]}  d6 {[%clk 0:02:54]} 4. Nf3 {[%clk 0:03:01]}  Bg4 {[%clk 0:02:53]} 5. Be2 {[%clk 0:03:01]}  e6 {[%clk 0:02:44]} 6. h3 {[%clk 0:03:00]}  Bxf3 {[%clk 0:02:43]} 7. Bxf3 {[%clk 0:03:00]}  Nc6 {[%clk 0:02:43]} 8. exd6 {[%clk 0:02:59]}  Bxd6 {[%clk 0:02:40]} 9. O-O {[%clk 0:02:57]}  Qh4 {[%clk 0:02:36]} 10. c4 {[%clk 0:01:45]}  Nf4 {[%clk 0:02:34]} 11. Be3 {[%clk 0:01:46]}  O-O-O {[%clk 0:02:25]} 12. Re1 {[%clk 0:01:36]}  g5 {[%clk 0:02:15]} 13. Nd2 {[%clk 0:01:35]}  f5 {[%clk 0:02:09]} 14. c5 {[%clk 0:01:26]}  Be7 {[%clk 0:02:05]} 15. Bxc6 {[%clk 0:01:22]}  bxc6 {[%clk 0:02:05]} 16. Qa4 {[%clk 0:01:20]}  Kd7 {[%clk 0:02:05]} 17. Nc4 {[%clk 0:01:18]}  Ng6 {[%clk 0:02:05]} 18. Rad1 {[%clk 0:01:14]}  Qe4 {[%clk 0:01:11]} 19. Bxg5 {[%clk 0:01:03]}  Qd5 {[%clk 0:01:11]} 20. Ne5+ {[%clk 0:01:02]}  Kc8 {[%clk 0:01:08]} 21. Bxe7 {[%clk 0:00:53]}  Rdg8 {[%clk 0:00:52]} 22. Qa6+ {[%clk 0:00:38]}  Kb8 {[%clk 0:00:45]} 23. Nxc6+ {[%clk 0:00:37]}  Qxc6 {[%clk 0:00:44]} 24. Qxc6 {[%clk 0:00:37]}  Nxe7 {[%clk 0:00:45]} 25. Qxe6 {[%clk 0:00:35]} 1-0


[Site "https://www.chess.com"]

[Event "Titled Tuesday Blitz August 09 Early 2022"]
[White "Gurevich, Dmitry"]
[Black "Zou, Chen"]
[WhiteFideId "2000407"]
[BlackFideId "8610959"]
[WhiteElo "2506"]
[BlackElo "2276"]
[Result "1/2-1/2"]
[Round "11"]
[TimeControl "180+1"]
[Date "2022.08.09"]
[WhiteClock "0:00:51"]
[BlackClock "0:00:37"]

1. d4 {[%clk 0:02:52]}  Nf6 {[%clk 0:02:59]} 2. c4 {[%clk 0:02:51]}  e6 {[%clk 0:02:58]} 3. Nf3 {[%clk 0:02:51]}  d5 {[%clk 0:02:58]} 4. Nc3 {[%clk 0:02:50]}  Be7 {[%clk 0:02:57]} 5. g3 {[%clk 0:02:48]}  O-O {[%clk 0:02:56]} 6. Bg2 {[%clk 0:02:48]}  dxc4 {[%clk 0:02:56]} 7. Ne5 {[%clk 0:02:47]}  c5 {[%clk 0:02:56]} 8. dxc5 {[%clk 0:02:43]}  Qxd1+ {[%clk 0:02:57]} 9. Nxd1 {[%clk 0:02:43]}  Bxc5 {[%clk 0:02:57]} 10. Nxc4 {[%clk 0:02:40]}  Nc6 {[%clk 0:02:57]} 11. Bxc6 {[%clk 0:02:39]}  bxc6 {[%clk 0:02:56]} 12. Be3 {[%clk 0:02:39]}  Bb4+ {[%clk 0:02:57]} 13. Bd2 {[%clk 0:02:39]}  Be7 {[%clk 0:02:57]} 14. Rc1 {[%clk 0:02:37]}  c5 {[%clk 0:02:56]} 15. O-O {[%clk 0:02:35]}  Ba6 {[%clk 0:02:56]} 16. b3 {[%clk 0:02:33]}  Rfc8 {[%clk 0:02:54]} 17. Ndb2 {[%clk 0:02:29]}  Kf8 {[%clk 0:02:52]} 18. f3 {[%clk 0:02:27]}  Nd5 {[%clk 0:02:47]} 19. Nd3 {[%clk 0:02:19]}  Nb6 {[%clk 0:02:42]} 20. Nde5 {[%clk 0:02:09]}  Ke8 {[%clk 0:02:38]} 21. Ba5 {[%clk 0:02:02]}  f6 {[%clk 0:02:24]} 22. Bxb6 {[%clk 0:01:39]}  axb6 {[%clk 0:02:23]} 23. Nd3 {[%clk 0:01:38]}  Rcb8 {[%clk 0:02:12]} 24. a4 {[%clk 0:01:32]}  b5 {[%clk 0:02:12]} 25. axb5 {[%clk 0:01:31]}  Rxb5 {[%clk 0:02:07]} 26. Rc3 {[%clk 0:01:31]}  Bb7 {[%clk 0:01:54]} 27. Rfc1 {[%clk 0:01:26]}  Kf8 {[%clk 0:01:08]} 28. Kf1 {[%clk 0:01:23]}  Bd5 {[%clk 0:01:02]} 29. Nd2 {[%clk 0:01:20]}  Rab8 {[%clk 0:00:50]} 30. Nxc5 {[%clk 0:01:04]}  Bxc5 {[%clk 0:00:50]} 31. Rxc5 {[%clk 0:01:04]}  Rxc5 {[%clk 0:00:51]} 32. Rxc5 {[%clk 0:01:03]}  Bxb3 {[%clk 0:00:51]} 33. Nxb3 {[%clk 0:00:58]}  Rxb3 {[%clk 0:00:50]} 34. Rc7 {[%clk 0:00:58]}  Rb2 {[%clk 0:00:49]} 35. Kf2 {[%clk 0:00:58]}  Ra2 {[%clk 0:00:48]} 36. h4 {[%clk 0:00:58]}  h5 {[%clk 0:00:43]} 37. Rb7 {[%clk 0:00:55]}  e5 {[%clk 0:00:41]} 38. Rc7 {[%clk 0:00:55]}  Rb2 {[%clk 0:00:41]} 39. Ra7 {[%clk 0:00:55]}  Rc2 {[%clk 0:00:41]} 40. Rb7 {[%clk 0:00:55]}  Ra2 {[%clk 0:00:41]} 41. Rc7 {[%clk 0:00:55]}  Rb2 {[%clk 0:00:40]} 42. Ke3 {[%clk 0:00:52]}  Rb4 {[%clk 0:00:38]} 43. Kd3 {[%clk 0:00:51]}  Rd4+ {[%clk 0:00:37]} 44. Ke3 {[%clk 0:00:51]}  Ra4 {[%clk 0:00:38]} 45. Kd3 {[%clk 0:00:51]}  Rd4+ {[%clk 0:00:38]} 46. Ke3 {[%clk 0:00:51]}  Ra4 {[%clk 0:00:38]} 47. Kd3 {[%clk 0:00:51]}  Rd4+ {[%clk 0:00:37]} 1/2-1/2


[Site "https://www.chess.com"]